[Event "Titled Tuesday Blitz November 08 Early 2022"]
[White "Kukula, Pawel"]
[Black "Zemlyanskii, Ivan"]
[WhiteFideId "1115081"]
[BlackFideId "24249971"]
[WhiteElo "2046"]
[BlackElo "2107"]
[Result "0-1"]
[Round "11"]
[TimeControl "180+1"]
[Date "2022.11.09"]
[WhiteClock "0:01:06"]
[BlackClock "0:01:42"]

1. c4 {[%clk 0:03:00]}  e6 {[%clk 0:02:57]} 2. Nf3 {[%clk 0:02:56]}  d5 {[%clk 0:02:58]} 3. e3 {[%clk 0:02:56]}  Nf6 {[%clk 0:02:57]} 4. b3 {[%clk 0:02:56]}  c5 {[%clk 0:02:53]} 5. Bb2 {[%clk 0:02:56]}  Nc6 {[%clk 0:02:54]} 6. cxd5 {[%clk 0:02:55]}  exd5 {[%clk 0:02:55]} 7. d4 {[%clk 0:02:54]}  cxd4 {[%clk 0:02:55]} 8. Nxd4 {[%clk 0:02:54]}  Bb4+ {[%clk 0:02:56]} 9. Ke2 {[%clk 0:02:34]}  O-O {[%clk 0:02:51]} 10. a3 {[%clk 0:02:33]}  Bc5 {[%clk 0:02:44]} 11. b4 {[%clk 0:02:33]}  Bb6 {[%clk 0:02:41]} 12. f3 {[%clk 0:02:32]}  Re8 {[%clk 0:02:40]} 13. Kf2 {[%clk 0:02:32]}  Qe7 {[%clk 0:02:40]} 14. Qd2 {[%clk 0:02:30]}  Bd7 {[%clk 0:02:30]} 15. Be2 {[%clk 0:02:24]}  Rac8 {[%clk 0:02:26]} 16. Rd1 {[%clk 0:02:03]}  Ne5 {[%clk 0:02:09]} 17. Nc3 {[%clk 0:01:59]}  Neg4+ {[%clk 0:02:02]} 18. fxg4 {[%clk 0:01:53]}  Rxc3 {[%clk 0:02:02]} 19. Bf3 {[%clk 0:01:40]}  Rxe3 {[%clk 0:01:54]} 20. h3 {[%clk 0:01:18]}  Ne4+ {[%clk 0:01:41]} 21. Kxe3 {[%clk 0:01:07]}  Nxd2+ {[%clk 0:01:41]} 22. Kxd2 {[%clk 0:01:08]}  Qe3+ {[%clk 0:01:41]} 23. Kc2 {[%clk 0:01:08]}  Ba4+ {[%clk 0:01:41]} 24. Kb1 {[%clk 0:01:06]}  Bxd1 {[%clk 0:01:42]} 25. Bxd1 {[%clk 0:01:06]} 0-1


[Site "https://www.chess.com"]

[Event "Titled Tuesday Blitz November 08 Early 2022"]
[White "Le, Tuan Minh"]
[Black "Nakamura, Hikaru"]
[WhiteFideId "12401153"]
[BlackFideId "2016192"]
[WhiteElo "2530"]
[BlackElo "2909"]
[Result "1-0"]
[Round "11"]
[TimeControl "180+1"]
[Date "2022.11.08"]
[WhiteClock "0:00:10"]
[BlackClock "0:00:08"]

1. d4 {[%clk 0:03:00]}  g6 {[%clk 0:02:59]} 2. e4 {[%clk 0:02:59]}  Bg7 {[%clk 0:02:59]} 3. Bc4 {[%clk 0:02:59]}  d6 {[%clk 0:02:57]} 4. Nf3 {[%clk 0:03:00]}  Nf6 {[%clk 0:02:56]} 5. Qe2 {[%clk 0:03:00]}  O-O {[%clk 0:02:52]} 6. O-O {[%clk 0:03:00]}  Bg4 {[%clk 0:02:52]} 7. c3 {[%clk 0:02:57]}  Nc6 {[%clk 0:02:50]} 8. h3 {[%clk 0:02:57]}  Bxf3 {[%clk 0:02:50]} 9. Qxf3 {[%clk 0:02:58]}  e5 {[%clk 0:02:51]} 10. d5 {[%clk 0:02:59]}  Ne7 {[%clk 0:02:49]} 11. Bd3 {[%clk 0:02:58]}  Nd7 {[%clk 0:02:47]} 12. c4 {[%clk 0:02:44]}  f5 {[%clk 0:02:47]} 13. Nc3 {[%clk 0:02:43]}  fxe4 {[%clk 0:02:39]} 14. Qxe4 {[%clk 0:02:43]}  Nc5 {[%clk 0:02:38]} 15. Qe2 {[%clk 0:02:42]}  Nf5 {[%clk 0:02:39]} 16. Be3 {[%clk 0:02:35]}  Nxe3 {[%clk 0:02:35]} 17. fxe3 {[%clk 0:02:36]}  Qh4 {[%clk 0:02:32]} 18. Bc2 {[%clk 0:02:17]}  e4 {[%clk 0:02:29]} 19. Nb5 {[%clk 0:01:42]}  Be5 {[%clk 0:01:56]} 20. Rxf8+ {[%clk 0:01:42]}  Rxf8 {[%clk 0:01:56]} 21. Rf1 {[%clk 0:01:42]}  Rxf1+ {[%clk 0:01:45]} 22. Qxf1 {[%clk 0:01:42]}  Qg5 {[%clk 0:01:44]} 23. Qe2 {[%clk 0:01:20]}  Bg3 {[%clk 0:00:47]} 24. Nc3 {[%clk 0:01:08]}  Qf5 {[%clk 0:00:41]} 25. b4 {[%clk 0:01:03]}  Qe5 {[%clk 0:00:32]} 26. Qd2 {[%clk 0:00:42]}  Na6 {[%clk 0:00:26]} 27. a3 {[%clk 0:00:38]}  Nb8 {[%clk 0:00:26]} 28. Nxe4 {[%clk 0:00:37]}  Bh4 {[%clk 0:00:24]} 29. Qd4 {[%clk 0:00:37]}  Nd7 {[%clk 0:00:22]} 30. Bd1 {[%clk 0:00:29]}  Be7 {[%clk 0:00:17]} 31. Bg4 {[%clk 0:00:27]}  Qxd4 {[%clk 0:00:18]} 32. exd4 {[%clk 0:00:26]}  Nb6 {[%clk 0:00:18]} 33. c5 {[%clk 0:00:25]}  Nc4 {[%clk 0:00:19]} 34. a4 {[%clk 0:00:24]}  b6 {[%clk 0:00:17]} 35. Kf2 {[%clk 0:00:22]}  Nb2 {[%clk 0:00:17]} 36. Ke2 {[%clk 0:00:20]}  bxc5 {[%clk 0:00:14]} 37. dxc5 {[%clk 0:00:19]}  dxc5 {[%clk 0:00:13]} 38. bxc5 {[%clk 0:00:20]}  Nxa4 {[%clk 0:00:14]} 39. d6 {[%clk 0:00:19]}  cxd6 {[%clk 0:00:15]} 40. cxd6 {[%clk 0:00:20]}  Bd8 {[%clk 0:00:15]} 41. Be6+ {[%clk 0:00:18]}  Kg7 {[%clk 0:00:15]} 42. Kd3 {[%clk 0:00:18]}  Nb6 {[%clk 0:00:14]} 43. Kd4 {[%clk 0:00:19]}  a5 {[%clk 0:00:13]} 44. Kc5 {[%clk 0:00:19]}  a4 {[%clk 0:00:14]} 45. g4 {[%clk 0:00:18]}  a3 {[%clk 0:00:14]} 46. Ba2 {[%clk 0:00:17]}  Nd7+ {[%clk 0:00:13]} 47. Kc6 {[%clk 0:00:17]}  Ne5+ {[%clk 0:00:14]} 48. Kb7 {[%clk 0:00:18]}  Nd3 {[%clk 0:00:14]} 49. Kc8 {[%clk 0:00:18]}  Ba5 {[%clk 0:00:14]} 50. d7 {[%clk 0:00:17]}  Nb4 {[%clk 0:00:15]} 51. Bb3 {[%clk 0:00:12]}  a2 {[%clk 0:00:15]} 52. Bxa2 {[%clk 0:00:13]}  Nxa2 {[%clk 0:00:15]} 53. Nd6 {[%clk 0:00:13]}  Nc3 {[%clk 0:00:08]} 54. Nc4 {[%clk 0:00:14]}  Nd5 {[%clk 0:00:09]} 55. Nxa5 {[%clk 0:00:13]}  Nb6+ {[%clk 0:00:09]} 56. Kc7 {[%clk 0:00:13]}  Nxd7 {[%clk 0:00:10]} 57. Kxd7 {[%clk 0:00:14]}  Kf6 {[%clk 0:00:11]} 58. Nc6 {[%clk 0:00:12]}  Kg5 {[%clk 0:00:12]} 59. Ke6 {[%clk 0:00:12]}  Kh4 {[%clk 0:00:10]} 60. Ne5 {[%clk 0:00:11]}  Kxh3 {[%clk 0:00:09]} 61. Kf6 {[%clk 0:00:09]}  Kh4 {[%clk 0:00:08]} 62. g5 {[%clk 0:00:09]}  Kh5 {[%clk 0:00:08]} 63. Nf7 {[%clk 0:00:10]}  Kg4 {[%clk 0:00:08]} 64. Kg7 {[%clk 0:00:10]} 1-0


[Site "https://www.chess.com"]

[Event "Titled Tuesday Blitz November 08 Early 2022"]
[White "Lehtosaari, Mauri"]
[Black "Mirzoev, Azer"]
[WhiteFideId "501999"]
[BlackFideId "13400304"]
[WhiteElo "2508"]
[BlackElo "2525"]
[Result "0-1"]
[Round "11"]
[TimeControl "180+1"]
[Date "2022.11.09"]
[WhiteClock "0:00:02"]
[BlackClock "0:00:22"]

1. d4 {[%clk 0:03:00]}  d5 {[%clk 0:02:59]} 2. Nf3 {[%clk 0:03:01]}  Nf6 {[%clk 0:02:57]} 3. Bg5 {[%clk 0:03:01]}  Bf5 {[%clk 0:02:57]} 4. Nbd2 {[%clk 0:02:57]}  e6 {[%clk 0:02:55]} 5. e3 {[%clk 0:02:58]}  h6 {[%clk 0:02:54]} 6. Bh4 {[%clk 0:02:57]}  c5 {[%clk 0:02:53]} 7. c3 {[%clk 0:02:57]}  Nc6 {[%clk 0:02:53]} 8. Ne5 {[%clk 0:02:55]}  Be7 {[%clk 0:02:39]} 9. Nxc6 {[%clk 0:02:50]}  bxc6 {[%clk 0:02:38]} 10. Qa4 {[%clk 0:02:50]}  Qb6 {[%clk 0:02:36]} 11. b3 {[%clk 0:02:34]}  O-O {[%clk 0:02:33]} 12. Be2 {[%clk 0:02:33]}  cxd4 {[%clk 0:02:23]} 13. exd4 {[%clk 0:02:22]}  c5 {[%clk 0:02:22]} 14. O-O {[%clk 0:02:19]}  cxd4 {[%clk 0:02:21]} 15. cxd4 {[%clk 0:02:20]}  Rfc8 {[%clk 0:02:21]} 16. Rfc1 {[%clk 0:02:13]}  Bc2 {[%clk 0:02:11]} 17. Ba6 {[%clk 0:01:57]}  Rc3 {[%clk 0:02:06]} 18. Nf3 {[%clk 0:01:49]}  Qb4 {[%clk 0:01:57]} 19. Qxb4 {[%clk 0:01:28]}  Bxb4 {[%clk 0:01:56]} 20. a3 {[%clk 0:01:23]}  Ba5 {[%clk 0:01:45]} 21. b4 {[%clk 0:01:21]}  Bb6 {[%clk 0:01:40]} 22. Bxf6 {[%clk 0:01:08]}  gxf6 {[%clk 0:01:39]} 23. Kf1 {[%clk 0:01:00]}  Bd3+ {[%clk 0:01:31]} 24. Bxd3 {[%clk 0:00:52]}  Rxd3 {[%clk 0:01:32]} 25. Ke2 {[%clk 0:00:46]}  Rb3 {[%clk 0:01:32]} 26. Rd1 {[%clk 0:00:40]}  a5 {[%clk 0:01:28]} 27. Rab1 {[%clk 0:00:37]}  Rxa3 {[%clk 0:01:27]} 28. bxa5 {[%clk 0:00:36]}  Bxa5 {[%clk 0:01:27]} 29. Rb2 {[%clk 0:00:35]}  Ra7 {[%clk 0:01:23]} 30. Rdb1 {[%clk 0:00:35]}  Kg7 {[%clk 0:01:22]} 31. h3 {[%clk 0:00:35]}  h5 {[%clk 0:01:20]} 32. Rb3 {[%clk 0:00:32]}  Ra2+ {[%clk 0:01:17]} 33. R1b2 {[%clk 0:00:32]}  Bc7 {[%clk 0:01:11]} 34. Rb7 {[%clk 0:00:28]}  Bd6 {[%clk 0:01:08]} 35. Rb6 {[%clk 0:00:21]}  Bf4 {[%clk 0:01:05]} 36. g3 {[%clk 0:00:21]}  Bc1 {[%clk 0:01:04]} 37. Rxa2 {[%clk 0:00:18]}  Rxa2+ {[%clk 0:01:05]} 38. Kf1 {[%clk 0:00:19]}  Bb2 {[%clk 0:00:58]} 39. Rb4 {[%clk 0:00:19]}  Bc3 {[%clk 0:00:56]} 40. Rb3 {[%clk 0:00:19]}  Rc2 {[%clk 0:00:55]} 41. h4 {[%clk 0:00:17]}  Kg6 {[%clk 0:00:40]} 42. Rb7 {[%clk 0:00:14]}  e5 {[%clk 0:00:33]} 43. dxe5 {[%clk 0:00:12]}  fxe5 {[%clk 0:00:33]} 44. Rc7 {[%clk 0:00:10]}  f6 {[%clk 0:00:31]} 45. Rd7 {[%clk 0:00:09]}  d4 {[%clk 0:00:30]} 46. Rd5 {[%clk 0:00:03]}  Kf5 {[%clk 0:00:29]} 47. Rd8 {[%clk 0:00:04]}  Ke4 {[%clk 0:00:29]} 48. Ng1 {[%clk 0:00:03]}  d3 {[%clk 0:00:27]} 49. Kg2 {[%clk 0:00:02]}  Bd4 {[%clk 0:00:25]} 50. Nh3 {[%clk 0:00:01]}  d2 {[%clk 0:00:22]} 51. f3+ {[%clk 0:00:02]}  Kd3 {[%clk 0:00:22]} 0-1


[Site "https://www.chess.com"]

[Event "Titled Tuesday Blitz November 08 Early 2022"]
[White "Luxama, Jacques Muller"]
[Black "Szente Varga, Fruzsina"]
[WhiteFideId "11900113"]
[BlackFideId "712264"]
[WhiteElo "1931"]
[BlackElo "1994"]
[Result "1-0"]
[Round "11"]
[TimeControl "180+1"]
[Date "2022.11.09"]
[WhiteClock "0:00:39"]
[BlackClock "0:00:02"]

1. e4 {[%clk 0:03:00]}  Nf6 {[%clk 0:02:57]} 2. e5 {[%clk 0:02:57]}  Nd5 {[%clk 0:02:57]} 3. d4 {[%clk 0:02:57]}  d6 {[%clk 0:02:57]} 4. exd6 {[%clk 0:02:57]}  exd6 {[%clk 0:02:58]} 5. Nf3 {[%clk 0:02:57]}  Be7 {[%clk 0:02:58]} 6. Bc4 {[%clk 0:02:57]}  Nb6 {[%clk 0:02:58]} 7. Bb3 {[%clk 0:02:57]}  O-O {[%clk 0:02:59]} 8. O-O {[%clk 0:02:56]}  Bg4 {[%clk 0:02:59]} 9. c3 {[%clk 0:02:55]}  Nc6 {[%clk 0:02:51]} 10. Re1 {[%clk 0:02:54]}  Bf6 {[%clk 0:02:51]} 11. h3 {[%clk 0:02:54]}  Bxf3 {[%clk 0:02:49]} 12. Qxf3 {[%clk 0:02:53]}  Re8 {[%clk 0:02:50]} 13. Be3 {[%clk 0:02:53]}  d5 {[%clk 0:02:48]} 14. Nd2 {[%clk 0:02:52]}  Qd7 {[%clk 0:02:46]} 15. Bc2 {[%clk 0:02:51]}  Ne7 {[%clk 0:02:45]} 16. a4 {[%clk 0:02:44]}  c6 {[%clk 0:02:44]} 17. a5 {[%clk 0:02:42]}  Nbc8 {[%clk 0:02:35]} 18. Bf4 {[%clk 0:02:40]}  Nd6 {[%clk 0:02:34]} 19. b4 {[%clk 0:02:31]}  Ng6 {[%clk 0:02:30]} 20. Bg3 {[%clk 0:02:24]}  Nh4 {[%clk 0:02:07]} 21. Bxh7+ {[%clk 0:02:02]}  Kxh7 {[%clk 0:02:03]} 22. Qh5+ {[%clk 0:02:02]}  Kg8 {[%clk 0:02:03]} 23. Bxh4 {[%clk 0:02:02]}  Bxh4 {[%clk 0:02:00]} 24. Qxh4 {[%clk 0:02:01]}  Qf5 {[%clk 0:01:52]} 25. Nf3 {[%clk 0:01:58]}  Ne4 {[%clk 0:01:50]} 26. Re3 {[%clk 0:01:55]}  Re6 {[%clk 0:01:35]} 27. Rae1 {[%clk 0:01:52]}  Rae8 {[%clk 0:01:20]} 28. Qg4 {[%clk 0:01:47]}  Qxg4 {[%clk 0:01:15]} 29. hxg4 {[%clk 0:01:47]}  Nxc3 {[%clk 0:01:14]} 30. Rxe6 {[%clk 0:01:28]}  Rxe6 {[%clk 0:01:13]} 31. Rxe6 {[%clk 0:01:24]}  fxe6 {[%clk 0:01:14]} 32. Ng5 {[%clk 0:01:24]}  Na2 {[%clk 0:01:11]} 33. Nxe6 {[%clk 0:01:23]}  Nxb4 {[%clk 0:01:10]} 34. Nd8 {[%clk 0:01:24]}  b6 {[%clk 0:01:09]} 35. axb6 {[%clk 0:01:23]}  axb6 {[%clk 0:01:10]} 36. Kf1 {[%clk 0:01:23]}  Kf8 {[%clk 0:01:05]} 37. Ne6+ {[%clk 0:01:19]}  Kf7 {[%clk 0:01:05]} 38. Nf4 {[%clk 0:01:19]}  Nc2 {[%clk 0:01:02]} 39. Ne2 {[%clk 0:01:17]}  b5 {[%clk 0:00:57]} 40. Nf4 {[%clk 0:01:09]}  Nxd4 {[%clk 0:00:53]} 41. Nd3 {[%clk 0:01:09]}  Ke6 {[%clk 0:00:50]} 42. Ke1 {[%clk 0:01:08]}  Kd6 {[%clk 0:00:50]} 43. Kd2 {[%clk 0:01:08]}  c5 {[%clk 0:00:50]} 44. f4 {[%clk 0:01:06]}  c4 {[%clk 0:00:49]} 45. Nb4 {[%clk 0:01:05]}  Kc5 {[%clk 0:00:48]} 46. Na6+ {[%clk 0:01:05]}  Kd6 {[%clk 0:00:46]} 47. g3 {[%clk 0:01:03]}  Nc6 {[%clk 0:00:44]} 48. f5 {[%clk 0:00:57]}  d4 {[%clk 0:00:43]} 49. g5 {[%clk 0:00:55]}  Ke5 {[%clk 0:00:43]} 50. g4 {[%clk 0:00:55]}  b4 {[%clk 0:00:35]} 51. g6 {[%clk 0:00:52]}  b3 {[%clk 0:00:34]} 52. Nc5 {[%clk 0:00:52]}  c3+ {[%clk 0:00:33]} 53. Kc1 {[%clk 0:00:51]}  b2+ {[%clk 0:00:32]} 54. Kb1 {[%clk 0:00:51]}  Kd5 {[%clk 0:00:18]} 55. Ne6 {[%clk 0:00:50]}  Kc4 {[%clk 0:00:14]} 56. f6 {[%clk 0:00:46]}  Kb3 {[%clk 0:00:11]} 57. Nc5+ {[%clk 0:00:42]}  Kc4 {[%clk 0:00:11]} 58. f7 {[%clk 0:00:41]}  d3 {[%clk 0:00:02]} 59. f8=Q {[%clk 0:00:39]} 1-0


[Site "https://www.chess.com"]

[Event "Titled Tuesday Blitz November 08 Early 2022"]
[White "Manon-og, Ramon Jr."]
[Black "Vidruska, Renate"]
[WhiteFideId "5200776"]
[BlackFideId "11601841"]
[WhiteElo "2237"]
[BlackElo "1877"]
[Result "1-0"]
[Round "11"]
[TimeControl "180+1"]
[Date "2022.11.09"]
[WhiteClock "0:00:08"]
[BlackClock "0:01:35"]

1. e4 {[%clk 0:02:54]}  e5 {[%clk 0:02:57]} 2. Nf3 {[%clk 0:02:53]}  Nc6 {[%clk 0:02:57]} 3. Bc4 {[%clk 0:02:51]}  Nf6 {[%clk 0:02:56]} 4. Ng5 {[%clk 0:02:51]}  d5 {[%clk 0:02:56]} 5. exd5 {[%clk 0:02:52]}  Na5 {[%clk 0:02:53]} 6. Bb5+ {[%clk 0:02:52]}  c6 {[%clk 0:02:35]} 7. dxc6 {[%clk 0:02:53]}  bxc6 {[%clk 0:02:34]} 8. Bd3 {[%clk 0:02:52]}  Nd5 {[%clk 0:02:33]} 9. Nf3 {[%clk 0:02:51]}  Nf4 {[%clk 0:02:30]} 10. O-O {[%clk 0:02:43]}  Nxd3 {[%clk 0:02:29]} 11. cxd3 {[%clk 0:02:43]}  Bg4 {[%clk 0:02:25]} 12. Re1 {[%clk 0:02:43]}  f6 {[%clk 0:02:24]} 13. h3 {[%clk 0:02:27]}  Bxf3 {[%clk 0:02:24]} 14. Qxf3 {[%clk 0:02:26]}  Be7 {[%clk 0:02:21]} 15. Qh5+ {[%clk 0:02:04]}  g6 {[%clk 0:02:21]} 16. Qh6 {[%clk 0:02:05]}  Kf7 {[%clk 0:02:21]} 17. Re3 {[%clk 0:01:49]}  Bc5 {[%clk 0:02:19]} 18. Rf3 {[%clk 0:01:49]}  Nb7 {[%clk 0:02:12]} 19. Nc3 {[%clk 0:01:48]}  Be7 {[%clk 0:02:10]} 20. Ne4 {[%clk 0:01:42]}  Qf8 {[%clk 0:02:02]} 21. Qe3 {[%clk 0:01:35]}  Kg7 {[%clk 0:01:58]} 22. b3 {[%clk 0:01:29]}  Rd8 {[%clk 0:01:57]} 23. Bb2 {[%clk 0:01:28]}  Nd6 {[%clk 0:01:54]} 24. Nc5 {[%clk 0:01:25]}  Qf7 {[%clk 0:01:53]} 25. g4 {[%clk 0:01:04]}  Qd5 {[%clk 0:01:53]} 26. Re1 {[%clk 0:00:45]}  Nb5 {[%clk 0:01:52]} 27. Ne4 {[%clk 0:00:38]}  Rhf8 {[%clk 0:01:51]} 28. g5 {[%clk 0:00:24]}  f5 {[%clk 0:01:46]} 29. Nf6 {[%clk 0:00:24]}  Bxf6 {[%clk 0:01:44]} 30. gxf6+ {[%clk 0:00:25]}  Kxf6 {[%clk 0:01:42]} 31. Bxe5+ {[%clk 0:00:24]}  Kf7 {[%clk 0:01:42]} 32. Rg3 {[%clk 0:00:12]}  Kg8 {[%clk 0:01:41]} 33. Qh6 {[%clk 0:00:12]}  Qf7 {[%clk 0:01:41]} 34. Kh2 {[%clk 0:00:09]}  Rfe8 {[%clk 0:01:39]} 35. f4 {[%clk 0:00:08]}  Nd4 {[%clk 0:01:36]} 36. Reg1 {[%clk 0:00:07]}  Re6 {[%clk 0:01:34]} 37. Qh4 {[%clk 0:00:07]}  Rde8 {[%clk 0:01:34]} 38. Bxd4 {[%clk 0:00:07]}  Re2+ {[%clk 0:01:33]} 39. R1g2 {[%clk 0:00:08]}  Rxg2+ {[%clk 0:01:33]} 40. Rxg2 {[%clk 0:00:09]}  Qd5 {[%clk 0:01:33]} 41. Be5 {[%clk 0:00:09]}  Qxd3 {[%clk 0:01:33]} 42. Qf6 {[%clk 0:00:09]}  Qd7 {[%clk 0:01:33]} 43. Qh8+ {[%clk 0:00:08]}  Kf7 {[%clk 0:01:34]} 44. Qxh7+ {[%clk 0:00:09]}  Ke6 {[%clk 0:01:35]} 45. Rxg6+ {[%clk 0:00:09]}  Kd5 {[%clk 0:01:35]} 46. Qxd7+ {[%clk 0:00:09]}  Kc5 {[%clk 0:01:35]} 47. Qd4+ {[%clk 0:00:10]}  Kb5 {[%clk 0:01:35]} 48. Qc4+ {[%clk 0:00:09]}  Kb6 {[%clk 0:01:36]} 49. Rxc6+ {[%clk 0:00:08]}  Kb7 {[%clk 0:01:36]} 50. Qb5+ {[%clk 0:00:09]}  Ka8 {[%clk 0:01:36]} 51. Rc7 {[%clk 0:00:08]}  Rd8 {[%clk 0:01:35]} 52. Qb7# {[%clk 0:00:08]} 1-0


[Site "https://www.chess.com"]

[Event "Titled Tuesday Blitz November 08 Early 2022"]
[White "Matlakov, Maxim"]
[Black "Bortnyk, Olexandr"]
[WhiteFideId "4168003"]
[BlackFideId "14120828"]
[WhiteElo "2669"]
[BlackElo "2723"]
[Result "0-1"]
[Round "11"]
[TimeControl "180+1"]
[Date "2022.11.08"]
[WhiteClock "0:00:15"]
[BlackClock "0:01:00"]

1. Nf3 {[%clk 0:03:00]}  Nf6 {[%clk 0:02:47]} 2. d4 {[%clk 0:03:00]}  d6 {[%clk 0:02:47]} 3. c4 {[%clk 0:03:00]}  g6 {[%clk 0:02:45]} 4. Nc3 {[%clk 0:02:59]}  Bf5 {[%clk 0:02:44]} 5. Nh4 {[%clk 0:02:37]}  Bd7 {[%clk 0:02:38]} 6. e4 {[%clk 0:02:35]}  Bg7 {[%clk 0:02:39]} 7. Nf3 {[%clk 0:02:33]}  O-O {[%clk 0:02:39]} 8. Be2 {[%clk 0:02:34]}  c5 {[%clk 0:02:37]} 9. d5 {[%clk 0:02:30]}  Na6 {[%clk 0:02:32]} 10. O-O {[%clk 0:02:29]}  Nc7 {[%clk 0:02:32]} 11. a4 {[%clk 0:02:27]}  a6 {[%clk 0:02:31]} 12. a5 {[%clk 0:02:27]}  Rb8 {[%clk 0:02:31]} 13. Bg5 {[%clk 0:02:23]}  b5 {[%clk 0:02:31]} 14. axb6 {[%clk 0:02:23]}  Rxb6 {[%clk 0:02:31]} 15. Ra2 {[%clk 0:02:18]}  Qb8 {[%clk 0:02:30]} 16. Qd2 {[%clk 0:02:17]}  Bg4 {[%clk 0:02:29]} 17. h3 {[%clk 0:01:48]}  Bxf3 {[%clk 0:02:29]} 18. Bxf3 {[%clk 0:01:49]}  Re8 {[%clk 0:02:29]} 19. Qc2 {[%clk 0:01:23]}  Nd7 {[%clk 0:02:27]} 20. Bg4 {[%clk 0:01:16]}  Ne5 {[%clk 0:02:27]} 21. Be2 {[%clk 0:01:15]}  Rb4 {[%clk 0:02:27]} 22. Nd1 {[%clk 0:01:14]}  Nd7 {[%clk 0:02:21]} 23. Bd2 {[%clk 0:01:13]}  Rb3 {[%clk 0:02:20]} 24. Ba5 {[%clk 0:01:08]}  Rb7 {[%clk 0:02:15]} 25. Bc3 {[%clk 0:01:01]}  Bxc3 {[%clk 0:02:10]} 26. Nxc3 {[%clk 0:01:02]}  e5 {[%clk 0:02:07]} 27. h4 {[%clk 0:00:56]}  h5 {[%clk 0:02:05]} 28. g3 {[%clk 0:00:56]}  Qd8 {[%clk 0:02:04]} 29. Kg2 {[%clk 0:00:56]}  Qe7 {[%clk 0:02:03]} 30. Qd2 {[%clk 0:00:55]}  Reb8 {[%clk 0:02:03]} 31. Rb1 {[%clk 0:00:54]}  Rb4 {[%clk 0:02:00]} 32. Qc2 {[%clk 0:00:53]}  Kg7 {[%clk 0:01:55]} 33. b3 {[%clk 0:00:53]}  Nf6 {[%clk 0:01:53]} 34. Ra3 {[%clk 0:00:52]}  Qd7 {[%clk 0:01:51]} 35. Bd1 {[%clk 0:00:51]}  Ng8 {[%clk 0:01:41]} 36. Rba1 {[%clk 0:00:49]}  Nh6 {[%clk 0:01:41]} 37. Qd2 {[%clk 0:00:48]}  Qe7 {[%clk 0:01:38]} 38. Na2 {[%clk 0:00:46]}  R4b6 {[%clk 0:01:37]} 39. Nc1 {[%clk 0:00:42]}  f5 {[%clk 0:01:34]} 40. Ne2 {[%clk 0:00:38]}  Rf8 {[%clk 0:01:32]} 41. Nc3 {[%clk 0:00:36]}  f4 {[%clk 0:01:32]} 42. Bf3 {[%clk 0:00:31]}  Rf7 {[%clk 0:01:29]} 43. Rf1 {[%clk 0:00:30]}  Rb8 {[%clk 0:01:30]} 44. Ne2 {[%clk 0:00:30]}  Rbf8 {[%clk 0:01:26]} 45. gxf4 {[%clk 0:00:29]}  Qxh4 {[%clk 0:01:25]} 46. Rh1 {[%clk 0:00:27]}  Qe7 {[%clk 0:01:25]} 47. f5 {[%clk 0:00:23]}  Nxf5 {[%clk 0:01:17]} 48. exf5 {[%clk 0:00:23]}  Rxf5 {[%clk 0:01:18]} 49. b4 {[%clk 0:00:19]}  e4 {[%clk 0:01:17]} 50. Bxh5 {[%clk 0:00:17]}  Rxf2+ {[%clk 0:01:13]} 51. Kg1 {[%clk 0:00:16]}  Rf1+ {[%clk 0:01:11]} 52. Kg2 {[%clk 0:00:16]}  R8f2+ {[%clk 0:01:12]} 53. Kg3 {[%clk 0:00:17]}  Qe5+ {[%clk 0:01:11]} 54. Nf4 {[%clk 0:00:15]}  Rxd2 {[%clk 0:01:00]} 0-1


[Site "https://www.chess.com"]

[Event "Titled Tuesday Blitz November 08 Early 2022"]
[White "Mazurkiewicz, Michal"]
[Black "Rose, Felix"]
[WhiteFideId "1124943"]
[BlackFideId "5105722"]
[WhiteElo "2063"]
[BlackElo "2039"]
[Result "1-0"]
[Round "11"]
[TimeControl "180+1"]
[Date "2022.11.09"]
[WhiteClock "0:00:54"]
[BlackClock "0:00:01"]

1. e4 {[%clk 0:02:59]}  e5 {[%clk 0:02:59]} 2. Nf3 {[%clk 0:02:59]}  Nc6 {[%clk 0:02:59]} 3. Bb5 {[%clk 0:02:59]}  a6 {[%clk 0:03:00]} 4. Bxc6 {[%clk 0:02:59]}  dxc6 {[%clk 0:03:00]} 5. O-O {[%clk 0:03:00]}  Bg4 {[%clk 0:03:00]} 6. h3 {[%clk 0:03:00]}  h5 {[%clk 0:03:00]} 7. d3 {[%clk 0:03:01]}  Qf6 {[%clk 0:03:00]} 8. Nbd2 {[%clk 0:03:01]}  O-O-O {[%clk 0:02:44]} 9. hxg4 {[%clk 0:03:00]}  hxg4 {[%clk 0:02:43]} 10. Nh2 {[%clk 0:03:00]}  Kb8 {[%clk 0:02:34]} 11. Qxg4 {[%clk 0:02:54]}  Nh6 {[%clk 0:02:21]} 12. Qg3 {[%clk 0:02:54]}  Be7 {[%clk 0:02:18]} 13. Ndf3 {[%clk 0:02:54]}  Qe6 {[%clk 0:02:11]} 14. Ng5 {[%clk 0:02:42]}  Bxg5 {[%clk 0:02:09]} 15. Bxg5 {[%clk 0:02:42]}  f6 {[%clk 0:02:09]} 16. Bxh6 {[%clk 0:02:39]}  Rxh6 {[%clk 0:02:09]} 17. Ng4 {[%clk 0:02:39]}  Rg6 {[%clk 0:02:01]} 18. f3 {[%clk 0:02:39]}  Qd6 {[%clk 0:01:59]} 19. Qf2 {[%clk 0:02:33]}  Rh8 {[%clk 0:01:59]} 20. Qe3 {[%clk 0:02:31]}  Rg5 {[%clk 0:01:49]} 21. Kf2 {[%clk 0:02:29]}  Rgh5 {[%clk 0:01:48]} 22. c3 {[%clk 0:02:24]}  g6 {[%clk 0:01:47]} 23. b4 {[%clk 0:02:17]}  b6 {[%clk 0:01:34]} 24. a4 {[%clk 0:02:12]}  Kb7 {[%clk 0:01:31]} 25. c4 {[%clk 0:02:02]}  f5 {[%clk 0:01:19]} 26. exf5 {[%clk 0:02:00]}  gxf5 {[%clk 0:01:19]} 27. c5 {[%clk 0:01:39]}  Qe6 {[%clk 0:00:22]} 28. Qxe5 {[%clk 0:01:35]}  Qb3 {[%clk 0:00:21]} 29. Ne3 {[%clk 0:01:07]}  f4 {[%clk 0:00:17]} 30. Qxf4 {[%clk 0:01:07]}  Qb2+ {[%clk 0:00:17]} 31. Kg3 {[%clk 0:01:07]}  Rg8+ {[%clk 0:00:08]} 32. Ng4 {[%clk 0:01:07]}  Rgh8 {[%clk 0:00:04]} 33. cxb6 {[%clk 0:00:56]}  cxb6 {[%clk 0:00:03]} 34. Rae1 {[%clk 0:00:55]}  R8h7 {[%clk 0:00:01]} 35. Re8 {[%clk 0:00:54]} 1-0


[Site "https://www.chess.com"]